bitfinex/quotes_SOLUSD_20241024
["timestamp","ask_amount","ask_price","bid_price","bid_amount"]
[1729787707454,36.78930216,176.73,176.67,31.13080216]
[1729787707769,15.1169,176.75,176.61,16.2879]
[1729787707770,0.12549,176.7,176.66,31.13080216]
[1729787708244,31.25629216,176.7,176.65,31.13080216]
[1729787708445,5.6577,176.75,176.69,31.13080216]
[1729787708652,31.13080216,176.74,176.69,31.13080216]
[1729787709059,31.13080216,176.75,176.7,31.13080216]
[1729787709271,12.2029,176.76,176.71,31.13080216]
[1729787709560,0.12549,176.71,176.65,31.13080216]
[1729787709749,31.25629216,176.71,176.65,31.13080216]
[1729787709952,0.12549,176.71,176.67,31.13080216]
[1729787710151,21.34999108,176.71,176.65,31.13080216]
[1729787710450,0.12549,176.69,176.65,31.13080216]
[1729787710764,0.12549,176.69,176.66,31.13080216]
[1729787711647,36.91569216,176.7,176.65,31.13080216]
[1729787711864,36.91569216,176.7,176.64,31.13080216]
[1729787712160,31.25629216,176.68,176.63,31.13080216]
[1729787712338,0.25098,176.69,176.56,3.25879568]
[1729787712339,0.12549,176.66,176.56,0.98153823]
[1729787712544,31.25629216,176.62,176.56,32.11234039]
[1729787712843,31.13080216,176.57,176.44,22.368]
[1729787713156,0.12549,176.58,176.44,22.368]
[1729787713547,31.25629216,176.58,176.52,31.13080216]
[1729787713851,16.4651,176.63,176.44,22.468]
[1729787713852,0.1,176.68,176.57,31.13080216]
[1729787714061,24.027864,176.66,176.61,31.13080216]
[1729787714265,0.12549,176.63,176.55,15.4303]
[1729787714449,31.25629216,176.64,176.59,31.13080216]
[1729787714768,0.12549,176.62,176.57,31.13080216]
[1729787715164,0.12549,176.62,176.58,31.13080216]
[1729787715374,0.12549,176.63,176.6,31.13080216]
[1729787715664,36.79100216,176.67,176.62,31.13080216]
[1729787715866,31.13080216,176.68,176.63,31.13080216]
[1729787716057,36.79080216,176.68,176.63,31.13080216]
[1729787716253,0.12549,176.67,176.62,31.13080216]
[1729787716465,31.25629216,176.67,176.61,31.13080216]
[1729787716969,31.25629216,176.64,176.59,31.13080216]
[1729787717152,0.25098,176.63,176.58,31.13080216]
[1729787717350,0.12549,176.62,176.57,31.13080216]
[1729787718047,0.12549,176.62,176.58,31.13080216]
[1729787719149,0.12549,176.62,176.59,31.13080216]
[1729787719873,0.12549,176.62,176.58,31.13080216]
[1729787720570,0.12549,176.62,176.6,31.13080216]
[1729787720753,23.776884,176.7,176.61,31.13080216]
[1729787720953,58.84230216,176.71,176.65,31.13080216]
[1729787721149,31.13080216,176.7,176.65,31.13080216]
[1729787721349,31.13080216,176.69,176.64,31.13080216]
[1729787721554,0.12549,176.68,176.64,31.13080216]
[1729787721875,0.12549,176.68,176.65,31.13080216]
[1729787722075,22.0525,176.71,176.67,31.13080216]
[1729787722377,0.12549,176.72,176.67,31.13080216]
[1729787722550,21.9222,176.75,176.7,31.13080216]
[1729787722551,52.95300216,176.75,176.7,31.13080216]
[1729787722755,58.61070216,176.75,176.7,31.13080216]
[1729787722957,0.12549,176.74,176.7,31.13080216]
[1729787723259,58.61070216,176.75,176.7,31.13080216]
[1729787723858,0.12549,176.74,176.7,31.13080216]
[1729787724150,0.25098,176.74,176.7,31.13080216]
[1729787724476,0.25098,176.74,176.69,31.13080216]
[1729787725095,24.027864,176.74,176.69,31.13080216]
[1729787725952,0.12549,176.74,176.69,31.13080216]
[1729787726382,24.153354,176.74,176.69,31.13080216]
[1729787726552,24.153354,176.74,176.7,31.13080216]
[1729787726879,0.37647,176.74,176.69,31.13080216]
[1729787727080,31.50727216,176.74,176.69,31.13080216]
[1729787727260,0.12549,176.72,176.69,31.13080216]
[1729787727462,0.37647,176.72,176.68,31.13080216]
[1729787727668,0.37647,176.72,176.58,15.3396]
[1729787727669,31.13080216,176.71,176.58,15.3396]
[1729787727879,0.12549,176.63,176.58,15.3396]
[1729787728186,0.12549,176.63,176.58,31.13080216]
[1729787728680,31.25629216,176.63,176.57,31.13080216]
[1729787729059,0.12549,176.63,176.58,31.13080216]
[1729787730287,0.12549,176.63,176.54,15.56540108]
[1729787730288,0.12549,176.59,176.54,15.56540108]
[1729787730459,31.13080216,176.64,176.58,31.13080216]
[1729787730656,24.027864,176.64,176.59,31.13080216]
[1729787730856,0.12549,176.63,176.59,31.13080216]
[1729787731679,0.12549,176.63,176.58,31.13080216]
[1729787731981,0.12549,176.63,176.53,21.3517]
[1729787731982,0.12549,176.63,176.59,31.13080216]
[1729787732483,0.12549,176.63,176.58,31.13080216]
[1729787732660,0.25098,176.64,176.59,31.13080216]
[1729787732981,55.15866616,176.64,176.58,31.13080216]
[1729787733859,31.25629216,176.62,176.56,31.13080216]
[1729787734055,55.28415616,176.6,176.54,31.13080216]
[1729787734364,0.12549,176.58,176.55,31.13080216]
[1729787734561,0.12549,176.58,176.56,31.13080216]
[1729787734775,24.027864,176.62,176.57,31.13080216]
[1729787734953,0.12549,176.61,176.56,31.13080216]
[1729787735770,0.12549,176.61,176.57,31.13080216]
[1729787737175,31.13080216,176.64,176.58,31.13080216]
[1729787737355,55.15866616,176.64,176.59,31.13080216]
[1729787737562,0.12549,176.63,176.59,31.13080216]
[1729787737763,0.12549,176.63,176.58,31.13080216]
[1729787738183,0.12549,176.61,176.58,31.13080216]
[1729787738361,0.12549,176.61,176.57,31.13080216]
[1729787738556,0.12549,176.61,176.49,59.76304503]
[1729787738557,0.12549,176.61,176.58,31.13080216]
[1729787738976,0.12549,176.61,176.57,31.13080216]
[1729787740174,0.12549,176.61,176.58,31.13080216]
[1729787740686,0.12549,176.59,176.54,31.13080216]
[1729787741277,0.12549,176.59,176.55,31.13080216]
[1729787741478,0.12549,176.59,176.56,15.56540108]
[1729787741689,24.027864,176.63,176.58,31.13080216]
[1729787741883,0.12549,176.62,176.57,31.13080216]
[1729787743185,31.25629216,176.62,176.56,31.13080216]
[1729787743487,0.12549,176.6,176.56,31.13080216]
[1729787743996,0.12549,176.6,176.55,31.13080216]
[1729787744691,0.12549,176.6,176.56,31.13080216]
[1729787746984,0.12549,176.56,176.51,31.13080216]
[1729787747187,31.25629216,176.56,176.51,31.13080216]
[1729787748384,36.92019216,176.56,176.5,31.13080216]
[1729787749091,0.12549,176.52,176.45,6.2592]
[1729787749264,0.12549,176.52,176.48,31.13080216]
[1729787749468,0.12549,176.52,176.49,31.13080216]
[1729787749671,0.12549,176.54,176.49,31.13080216]
[1729787749869,37.17297216,176.5,176.42,5.91472967]
[1729787750070,0.12549,176.48,176.43,31.13080216]
[1729787750286,0.12549,176.48,176.44,31.13080216]
[1729787750473,0.12549,176.48,176.47,31.13080216]
[1729787750681,24.027864,176.52,176.47,31.13080216]
[1729787750877,23.776884,176.53,176.48,31.13080216]
[1729787751067,0.12549,176.52,176.48,31.13080216]
[1729787751672,24.027864,176.54,176.5,31.13080216]
[1729787751970,0.12549,176.53,176.5,31.13080216]
[1729787752594,0.12549,176.53,176.49,31.13080216]
[1729787752967,0.12549,176.53,176.48,31.13080216]
[1729787754168,31.25629216,176.53,176.47,31.13080216]
[1729787754374,0.12549,176.53,176.48,31.13080216]
[1729787754789,0.12549,176.53,176.49,31.13080216]
[1729787754969,0.12549,176.53,176.5,31.13080216]
[1729787755287,0.25098,176.55,176.5,31.13080216]
[1729787755496,0.12549,176.54,176.5,31.13080216]
[1729787756193,0.12549,176.54,176.51,31.13080216]
[1729787756389,31.13080216,176.58,176.52,31.13080216]
[1729787756588,31.13080216,176.56,176.51,31.13080216]
[1729787756774,0.12549,176.55,176.52,31.13080216]
[1729787757279,31.13080216,176.58,176.52,31.13080216]
[1729787757903,0.37647,176.57,176.52,31.13080216]
[1729787758078,31.50727216,176.57,176.52,31.13080216]
[1729787758886,31.50727216,176.57,176.51,31.13080216]
[1729787759079,0.12549,176.55,176.5,31.13080216]
[1729787759278,31.25629216,176.55,176.5,31.13080216]
[1729787760473,5.6612,176.64,176.54,31.13080216]
[1729787760684,31.13080216,176.62,176.55,31.13080216]
[1729787760883,0.12549,176.59,176.55,31.13080216]
[1729787761196,0.12549,176.6,176.55,31.13080216]
[1729787761399,31.25629216,176.6,176.55,31.13080216]
[1729787761603,31.13080216,176.6,176.55,31.13080216]
[1729787761888,31.50727216,176.59,176.54,31.13080216]
[1729787762096,31.50727216,176.59,176.53,31.13080216]
[1729787762285,0.37647,176.57,176.52,31.13080216]
[1729787762796,31.50727216,176.57,176.51,31.13080216]
[1729787762971,31.50727216,176.57,176.41,6.11308156]
[1729787762972,31.50727216,176.55,176.49,31.13080216]
[1729787763171,31.50727216,176.55,176.44,22.4488]
[1729787763172,0.12549,176.53,176.48,31.13080216]
[1729787763786,0.12549,176.52,176.48,31.13080216]
[1729787764200,0.12549,176.53,176.49,31.13080216]
[1729787764797,0.12549,176.53,176.48,31.13080216]
[1729787765379,0.12549,176.53,176.46,31.13080216]
[1729787765380,0.12549,176.51,176.46,31.13080216]
[1729787765587,0.12549,176.49,176.44,31.13080216]
[1729787766084,0.12549,176.49,176.45,31.13080216]
[1729787766282,0.12549,176.5,176.45,31.13080216]
[1729787767499,31.38178216,176.53,176.47,31.13080216]
[1729787767694,5.91568,176.53,176.48,31.13080216]
[1729787767888,0.37647,176.52,176.48,31.13080216]
[1729787769087,0.37647,176.52,176.47,31.13080216]
[1729787769313,31.25629216,176.5,176.45,31.13080216]
[1729787769606,31.25629216,176.5,176.41,31.13080216]
[1729787769607,0.25098,176.45,176.41,31.13080216]
[1729787769916,0.12549,176.47,176.35,22.4988]
[1729787769917,0.12549,176.47,176.43,31.13080216]
[1729787770006,39.71875508,176.48,176.35,28.41585158]
[1729787770387,0.12549,176.46,176.35,28.41585158]
[1729787770593,0.37647,176.46,176.42,31.13080216]
[1729787771308,36.79730216,176.48,176.43,31.13080216]
[1729787771496,5.6665,176.48,176.43,31.13080216]
[1729787771692,0.12549,176.47,176.44,31.13080216]
[1729787771901,0.12549,176.47,176.45,31.13080216]
[1729787772206,0.25098,176.5,176.46,31.13080216]
[1729787772501,0.37647,176.5,176.45,31.13080216]
[1729787772681,0.37647,176.5,176.46,31.13080216]
[1729787773688,46.67460216,176.52,176.46,31.13080216]
[1729787773884,36.79600216,176.52,176.46,31.13080216]
[1729787774093,36.79560216,176.53,176.47,31.13080216]
[1729787774295,31.25629216,176.52,176.47,31.13080216]
[1729787775109,0.12549,176.5,176.45,31.13080216]
[1729787775403,31.25629216,176.49,176.43,31.13080216]
[1729787775603,0.12549,176.47,176.43,31.13080216]
[1729787777092,0.12549,176.48,176.44,31.13080216]
[1729787777301,0.12549,176.48,176.45,31.13080216]
[1729787778010,0.12549,176.48,176.44,31.13080216]
[1729787778715,37.04778216,176.49,176.43,31.13080216]
[1729787779016,37.04778216,176.49,176.44,31.13080216]
[1729787779201,37.04778216,176.49,176.39,15.9201]
[1729787779202,0.12549,176.48,176.43,31.13080216]
[1729787779394,0.12549,176.48,176.39,15.9201]
[1729787779395,0.12549,176.48,176.44,31.13080216]
[1729787779808,0.12549,176.48,176.43,31.13080216]
[1729787780026,0.12549,176.47,176.42,31.13080216]
[1729787780622,5.79219,176.47,176.42,31.13080216]
[1729787780915,5.79219,176.47,176.43,31.13080216]
[1729787782000,5.79219,176.47,176.42,31.13080216]
[1729787782215,5.79219,176.47,176.43,31.13080216]
[1729787783896,5.79219,176.47,176.44,31.13080216]
[1729787784296,5.91678,176.5,176.46,31.13080216]
[1729787784692,0.12549,176.49,176.46,31.13080216]
[1729787785213,0.12549,176.49,176.44,31.13080216]
[1729787785396,5.79159,176.49,176.44,31.13080216]
[1729787786303,5.79159,176.49,176.45,31.13080216]
[1729787786695,5.79159,176.49,176.44,31.13080216]
[1729787787313,0.12549,176.5,176.45,31.13080216]
[1729787787500,0.12549,176.5,176.4,31.13080216]
[1729787787501,15.1354,176.56,176.49,31.13080216]
[1729787787689,36.79490216,176.55,176.5,31.13080216]
[1729787787894,0.12549,176.54,176.49,31.13080216]
[1729787788400,31.25629216,176.54,176.49,31.13080216]
[1729787788907,31.25629216,176.5,176.45,31.13080216]
[1729787789101,0.12549,176.5,176.45,31.13080216]
[1729787789694,31.25629216,176.5,176.45,31.13080216]
[1729787790219,0.12549,176.5,176.45,31.13080216]
[1729787790715,36.92249216,176.49,176.44,31.13080216]
[1729787791751,36.92249216,176.49,176.44,15.56540108]
[1729787791932,36.92249216,176.49,176.44,31.13080216]
[1729787792126,5.79169,176.49,176.44,31.13080216]
[1729787793342,0.12549,176.47,176.42,31.13080216]
[1729787793536,31.25629216,176.47,176.41,31.13080216]
[1729787793725,0.12549,176.45,176.4,31.13080216]
[1729787794946,0.12549,176.45,176.41,31.13080216]
[1729787796149,5.79249,176.46,176.41,31.13080216]
[1729787797250,5.79249,176.46,176.42,31.13080216]
[1729787797451,0.25098,176.5,176.45,31.13080216]
[1729787797751,0.25098,176.5,176.46,15.56540108]
[1729787797932,0.12549,176.49,176.46,31.13080216]
[1729787798125,0.25098,176.5,176.46,31.13080216]
[1729787798338,5.91668,176.5,176.46,15.56540108]
[1729787798635,0.12549,176.49,176.45,31.13080216]
[1729787798838,0.12549,176.49,176.44,31.13080216]
[1729787799047,31.13080216,176.49,176.44,31.13080216]
[1729787799352,0.12549,176.48,176.44,31.13080216]
[1729787799554,0.12549,176.48,176.39,15.9201]
[1729787799555,0.25098,176.48,176.43,31.13080216]
[1729787799939,0.25098,176.48,176.44,31.13080216]
[1729787800441,5.91748,176.48,176.44,31.13080216]
[1729787801032,5.91668,176.5,176.46,15.56540108]
[1729787801236,0.12549,176.49,176.45,31.13080216]
[1729787801961,31.13080216,176.54,176.48,31.13080216]
[1729787802138,36.79490216,176.55,176.49,31.13080216]
[1729787802646,31.13080216,176.54,176.48,31.13080216]
[1729787802837,0.12549,176.53,176.49,31.13080216]
[1729787803236,0.12549,176.54,176.49,31.13080216]
[1729787803446,0.12549,176.54,176.5,31.13080216]
[1729787805611,0.12549,176.54,176.51,31.13080216]
[1729787805920,5.78999,176.54,176.51,31.13080216]
[1729787806111,5.78999,176.54,176.5,31.13080216]
[1729787807560,5.78999,176.54,176.51,31.13080216]
[1729787807865,0.25098,176.57,176.53,31.13080216]
[1729787808070,5.6634,176.58,176.54,31.13080216]
[1729787808368,0.12549,176.57,176.53,31.13080216]
[1729787808849,0.12549,176.58,176.53,31.13080216]
[1729787809367,0.12549,176.54,176.5,15.56540108]
[1729787809651,0.12549,176.54,176.49,31.13080216]
[1729787810022,0.12549,176.54,176.5,31.13080216]
[1729787811036,0.12549,176.54,176.51,31.13080216]
[1729787812112,5.6635,176.57,176.52,31.13080216]
[1729787812315,5.6635,176.57,176.53,31.13080216]
[1729787812620,5.91408,176.58,176.53,31.13080216]
[1729787812834,0.12549,176.57,176.53,31.13080216]
[1729787813130,0.12549,176.57,176.54,31.13080216]
[1729787813625,5.78899,176.57,176.54,31.13080216]
[1729787813939,0.25098,176.56,176.51,31.13080216]
[1729787815316,0.12549,176.55,176.51,31.13080216]
[1729787815813,0.12549,176.55,176.46,15.8799]
[1729787815814,14.1552,176.62,176.54,31.13080216]
[1729787816127,20.0,176.6,176.55,31.13080216]
[1729787816636,51.13080216,176.6,176.54,31.13080216]
[1729787816837,5.78829,176.59,176.55,31.13080216]
[1729787819136,5.78829,176.59,176.54,31.13080216]
[1729787819726,36.91909216,176.59,176.54,31.13080216]
[1729787819930,5.78829,176.59,176.54,31.13080216]
[1729787820129,5.6609,176.65,176.58,31.13080216]
[1729787820320,5.6609,176.65,176.54,16.4634]
[1729787820321,5.6609,176.65,176.62,31.13080216]
[1729787821119,5.6609,176.65,176.63,31.13080216]
[1729787821441,5.6599,176.68,176.64,31.13080216]
[1729787821821,5.6596,176.7,176.67,31.13080216]
[1729787822156,21.2684,176.71,176.69,31.13080216]
[1729787822320,0.12549,176.7,176.68,31.13080216]
[1729787822629,5.6589,176.71,176.68,31.13080216]
[1729787823221,0.12549,176.7,176.69,31.13080216]
[1729787823544,5.658,176.74,176.69,31.13080216]
[1729787823741,5.658,176.74,176.7,31.13080216]
[1729787824429,0.12549,176.73,176.7,31.13080216]
[1729787824942,5.6577,176.75,176.7,31.13080216]
[1729787825437,0.12549,176.74,176.7,31.13080216]
[1729787825623,0.12549,176.74,176.71,31.13080216]
[1729787826222,0.37647,176.74,176.71,31.13080216]
[1729787826546,0.37647,176.74,176.72,31.13080216]
[1729787826838,0.37647,176.74,176.71,31.13080216]
[1729787827244,0.12549,176.72,176.71,31.13080216]
[1729787827740,0.12549,176.72,176.7,31.13080216]
[1729787827919,0.12549,176.72,176.67,31.13080216]
[1729787828323,31.25629216,176.72,176.67,31.13080216]
[1729787828546,31.13080216,176.72,176.67,31.13080216]
[1729787828844,5.658,176.74,176.69,31.13080216]
[1729787829040,0.12549,176.73,176.68,31.13080216]
[1729787829238,31.25629216,176.73,176.67,31.13080216]
[1729787831234,19.7952,176.81,176.72,31.13080216]
[1729787831541,19.7952,176.81,176.68,22.6432]
[1729787831542,31.13080216,176.79,176.73,31.13080216]
[1729787831727,5.6557,176.81,176.75,31.13080216]
[1729787831925,36.78650216,176.81,176.76,31.13080216]
[1729787832122,36.78650216,176.81,176.75,31.13080216]
[1729787832428,31.13080216,176.8,176.75,31.13080216]
[1729787832836,36.78710216,176.8,176.75,31.13080216]
[1729787833135,5.6563,176.8,176.75,31.13080216]
[1729787834030,0.12549,176.8,176.76,31.13080216]
[1729787834234,36.78630216,176.82,176.76,31.13080216]
[1729787834429,5.6555,176.82,176.77,31.13080216]
[1729787834649,5.6555,176.82,176.78,31.13080216]
[1729787835433,5.6555,176.82,176.77,31.13080216]
[1729787836247,0.12549,176.81,176.77,31.13080216]
[1729787837052,0.12549,176.81,176.76,47.39470216]
[1729787837436,0.12549,176.81,176.77,31.13080216]
[1729787838236,0.12549,176.81,176.76,47.39470216]
[1729787839151,31.13080216,176.77,176.72,16.0901]
[1729787839455,31.13080216,176.76,176.72,16.0901]
[1729787839957,31.13080216,176.74,176.68,46.74560216]
[1729787840950,31.25629216,176.73,176.68,15.6148]
[1729787841153,36.91459216,176.73,176.68,15.6148]
[1729787844972,31.25629216,176.73,176.68,15.6148]
[1729787845670,31.25629216,176.71,176.66,31.13080216]
[1729787845857,0.12549,176.69,176.64,46.38480216]
[1729787846071,31.25629216,176.69,176.64,15.254]
[1729787846451,0.12549,176.69,176.64,46.38480216]
[1729787846855,0.12549,176.69,176.65,31.13080216]
[1729787847463,0.12549,176.67,176.63,31.13080216]
[1729787847798,15.69089108,176.67,176.6,46.23620216]
[1729787848071,31.25629216,176.64,176.6,15.1054]
[1729787848268,31.13080216,176.62,176.56,31.13080216]
[1729787848480,31.25629216,176.63,176.57,31.13080216]
[1729787848659,31.25629216,176.63,176.58,31.13080216]
[1729787849860,31.25629216,176.63,176.57,31.13080216]
[1729787855384,15.56540108,176.62,176.57,31.13080216]
[1729787855680,31.13080216,176.62,176.57,31.13080216]
[1729787855859,31.25629216,176.63,176.57,31.13080216]
[1729787857677,31.25629216,176.63,176.58,31.13080216]
[1729787858283,0.12549,176.59,176.55,46.83490216]
[1729787858588,31.25629216,176.59,176.53,31.13080216]
[1729787861067,0.12549,176.59,176.54,31.13080216]
[1729787862284,31.25629216,176.59,176.53,31.13080216]
[1729787862995,31.13080216,176.58,176.53,31.13080216]
[1729787863663,0.12549,176.59,176.55,31.13080216]
[1729787863981,0.12549,176.6,176.55,31.13080216]
[1729787864182,31.25629216,176.6,176.55,31.13080216]
[1729787864487,31.25629216,176.6,176.54,31.13080216]
[1729787864659,31.25629216,176.6,176.55,31.13080216]
[1729787866184,31.25629216,176.6,176.54,31.13080216]
[1729787867261,0.12549,176.58,176.53,31.13080216]
[1729787867575,0.12549,176.56,176.52,31.13080216]
[1729787868672,0.12549,176.58,176.53,31.13080216]
[1729787869072,0.12549,176.58,176.5,21.26172187]
[1729787869073,0.12549,176.58,176.54,31.13080216]
[1729787869273,31.13080216,176.6,176.55,31.13080216]
[1729787869472,31.13080216,176.62,176.56,31.13080216]
[1729787870689,0.12549,176.61,176.56,31.13080216]
[1729787871683,0.12549,176.61,176.57,31.13080216]
[1729787871887,31.25629216,176.63,176.57,31.13080216]
[1729787872180,31.13080216,176.62,176.57,31.13080216]
[1729787872585,15.8028,176.66,176.61,31.13080216]
[1729787872762,31.13080216,176.68,176.62,31.13080216]
[1729787873169,31.13080216,176.68,176.63,31.13080216]
[1729787874587,58.44170216,176.71,176.65,31.13080216]
[1729787875087,52.78270216,176.71,176.66,31.13080216]
[1729787875269,21.6519,176.71,176.66,31.13080216]
[1729787875468,0.12549,176.7,176.66,31.13080216]
[1729787875664,0.12549,176.7,176.65,31.13080216]
[1729787875872,0.12549,176.7,176.66,31.13080216]
[1729787877961,0.12549,176.7,176.59,0.2]
[1729787878180,0.12549,176.66,176.61,15.56540108]
[1729787878387,0.12549,176.66,176.61,31.13080216]
[1729787878388,31.25629216,176.66,176.61,31.13080216]
[1729787880199,0.12549,176.64,176.59,31.13080216]
[1729787880483,31.13080216,176.63,176.58,31.13080216]
[1729787880684,5.6606,176.66,176.56,6.535]
[1729787880685,31.25629216,176.62,176.56,31.13080216]
[1729787880993,0.12549,176.62,176.58,31.13080216]
[1729787881489,0.12549,176.62,176.57,31.13080216]
[1729787881671,0.12549,176.61,176.56,31.13080216]
[1729787882170,31.25629216,176.61,176.56,31.13080216]
[1729787882373,0.12549,176.61,176.56,31.13080216]
[1729787882766,31.25629216,176.61,176.55,31.13080216]
[1729787883286,0.12549,176.58,176.54,31.13080216]
[1729787883485,31.25629216,176.58,176.52,31.13080216]
[1729787883691,31.13080216,176.57,176.51,31.13080216]
[1729787884491,31.25629216,176.58,176.52,31.13080216]
[1729787884890,31.13080216,176.57,176.51,31.13080216]
[1729787885492,31.25629216,176.56,176.5,31.13080216]
[1729787886081,0.12549,176.56,176.51,31.13080216]
[1729787886595,31.25629216,176.56,176.5,31.13080216]
[1729787886971,31.25629216,176.56,176.49,46.31740216]
[1729787886972,31.13080216,176.55,176.49,46.31740216]
[1729787887979,31.13080216,176.55,176.49,31.13080216]
[1729787890802,31.25629216,176.56,176.51,31.13080216]
[1729787891688,0.12549,176.56,176.51,31.13080216]
[1729787892995,0.12549,176.56,176.52,31.13080216]
[1729787893200,31.13080216,176.6,176.55,31.13080216]
[1729787893387,0.12549,176.58,176.53,31.13080216]
[1729787894099,0.12549,176.58,176.54,31.13080216]
[1729787894392,36.79280216,176.62,176.57,31.13080216]
[1729787894599,5.662,176.62,176.57,31.13080216]
[1729787894805,16.0763,176.63,176.58,31.13080216]
[1729787895095,36.79230216,176.64,176.58,31.13080216]
[1729787895474,0.12549,176.63,176.58,31.13080216]
[1729787895671,36.79230216,176.64,176.59,31.13080216]
[1729787896593,0.12549,176.63,176.6,31.13080216]
[1729787896893,0.12549,176.6,176.56,31.13080216]
[1729787898286,0.12549,176.61,176.56,31.13080216]
[1729787900902,31.13080216,176.65,176.6,31.13080216]
[1729787901083,31.25629216,176.65,176.6,31.13080216]
[1729787901278,31.25629216,176.65,176.59,31.13080216]
[1729787901279,31.13080216,176.64,176.59,31.13080216]
[1729787901494,0.12549,176.63,176.59,31.13080216]
[1729787901885,0.12549,176.64,176.6,31.13080216]
[1729787902400,0.12549,176.64,176.61,31.13080216]
[1729787902699,0.12549,176.65,176.6,31.13080216]
[1729787903804,0.12549,176.65,176.61,31.13080216]
[1729787904107,59.96610216,176.67,176.61,31.13080216]
[1729787904412,16.6552,176.67,176.62,31.13080216]
[1729787904588,36.79100216,176.68,176.63,31.13080216]
[1729787905400,0.12549,176.67,176.63,31.13080216]
[1729787905607,0.12549,176.67,176.62,31.13080216]
[1729787906799,5.78579,176.67,176.62,31.13080216]
[1729787907305,0.12549,176.65,176.61,31.13080216]
[1729787910183,5.78649,176.65,176.6,31.13080216]
[1729787910383,5.78649,176.65,176.61,31.13080216]
[1729787911002,0.12549,176.65,176.61,31.13080216]
[1729787912281,0.12549,176.65,176.62,31.13080216]
[1729787912505,0.12549,176.65,176.61,31.13080216]
[1729787914003,0.12549,176.65,176.62,31.13080216]
[1729787914708,36.79070216,176.69,176.63,31.13080216]
[1729787914915,36.79070216,176.69,176.64,31.13080216]
[1729787915091,0.12549,176.68,176.64,31.13080216]
[1729787915715,16.3593,176.71,176.67,31.13080216]
[1729787915917,37.34810216,176.72,176.67,31.13080216]
[1729787916203,0.12549,176.72,176.68,31.13080216]
[1729787916395,36.78920216,176.73,176.68,31.13080216]
[1729787917184,0.12549,176.72,176.68,31.13080216]
[1729787917412,0.12549,176.72,176.67,31.13080216]
[1729787917711,0.37647,176.72,176.68,31.13080216]
[1729787918289,6.03517,176.72,176.68,31.13080216]
[1729787918912,6.03517,176.72,176.69,31.13080216]
[1729787918913,0.12549,176.72,176.69,31.13080216]
[1729787919205,0.12549,176.72,176.62,23.776884]
[1729787919206,0.12549,176.72,176.68,31.13080216]
[1729787920292,0.12549,176.72,176.67,31.13080216]
[1729787921292,0.12549,176.72,176.62,23.776884]
[1729787921293,31.25629216,176.7,176.64,31.13080216]
[1729787921488,0.12549,176.68,176.63,31.13080216]
[1729787921694,31.25629216,176.67,176.62,31.13080216]
[1729787922515,0.12549,176.68,176.63,31.13080216]
[1729787923194,31.25629216,176.68,176.62,31.13080216]
[1729787926119,31.13080216,176.67,176.61,31.13080216]
[1729787926908,31.13080216,176.67,176.62,31.13080216]
[1729787928016,31.13080216,176.67,176.6,16.4761]
[1729787928017,31.13080216,176.69,176.64,31.13080216]
[1729787928317,0.12549,176.68,176.64,31.13080216]
[1729787928810,0.12549,176.7,176.65,31.13080216]
[1729787929031,36.78920216,176.73,176.68,31.13080216]
[1729787929200,0.12549,176.72,176.68,31.13080216]
[1729787930100,36.78920216,176.73,176.68,31.13080216]
[1729787930101,31.13080216,176.73,176.68,31.13080216]
[1729787930636,0.12549,176.72,176.68,31.13080216]
[1729787931334,0.12549,176.72,176.67,31.13080216]
[1729787932133,31.25629216,176.72,176.67,31.13080216]
[1729787932911,0.12549,176.72,176.67,31.13080216]
[1729787933127,0.12549,176.72,176.68,31.13080216]
[1729787933431,0.12549,176.73,176.69,31.13080216]
[1729787936416,36.78820216,176.76,176.7,31.13080216]
[1729787936597,36.78820216,176.76,176.71,31.13080216]
[1729787936795,0.12549,176.75,176.71,31.13080216]
[1729787937219,0.12549,176.75,176.7,31.13080216]
[1729787940006,0.12549,176.75,176.71,31.13080216]
[1729787940307,0.12549,176.75,176.71,19.92767596]
[1729787940719,20.05316596,176.75,176.7,19.92767596]
[1729787942605,25.71086596,176.75,176.7,19.92767596]
[1729787944003,5.78319,176.75,176.7,19.92767596]
[1729787948325,5.78319,176.75,176.71,19.92767596]
[1729787952126,0.12549,176.75,176.71,19.92767596]
[1729787953610,5.78319,176.75,176.71,19.92767596]
[1729787954108,5.78319,176.75,176.68,16.4656]
[1729787954109,5.78319,176.75,176.7,19.92767596]
[1729787956010,19.92767596,176.71,176.64,21.4296]
[1729787956327,19.92767596,176.71,176.66,19.92767596]
[1729787956714,19.92767596,176.7,176.64,35.29037596]
[1729787957023,19.92767596,176.7,176.64,19.92767596]
[1729787957220,19.92767596,176.71,176.65,19.92767596]